bitfinex-derivatives/quotes_BNBF0:USTF0_20250521
["timestamp","ask_amount","ask_price","bid_price","bid_amount"]
[1747827474498,2.28217306,654.98,654.23,0.60137044]
[1747827474698,2.28217306,654.98,654.24,0.60137044]
[1747827474900,2.28217306,654.98,654.03,0.578019]
[1747827475099,2.28217306,654.98,654.04,0.90687614]
[1747827475293,2.28217306,654.98,654.05,0.90687614]
[1747827475499,2.28217306,654.98,654.06,0.90687614]
[1747827475694,2.28217306,654.98,654.07,2.083902]
[1747827475899,2.28217306,654.98,654.08,0.90687614]
[1747827476198,2.28217306,654.98,654.09,0.90687614]
[1747827476398,2.28217306,654.98,654.1,0.90687614]
[1747827476598,2.28217306,654.98,654.11,2.083902]
[1747827476798,2.28217306,654.98,654.12,0.90687507]
[1747827476993,0.26584063,655.47,654.13,2.08390093]
[1747827476994,2.28217306,654.93,654.13,2.08390093]
[1747827477197,2.28217306,654.93,654.14,0.90687507]
[1747827477398,2.28217306,654.93,654.15,0.90687507]
[1747827477697,2.28217306,654.93,654.16,0.90687507]
[1747827477897,2.28217306,654.93,654.17,0.90687507]
[1747827478098,2.28217306,654.93,654.18,1.77841565]
[1747827478396,2.28217306,654.93,654.19,0.90681948]
[1747827478601,2.28217306,654.93,654.2,1.77841565]
[1747827478801,2.28217306,654.93,654.21,0.60138979]
[1747827479000,2.28217306,654.93,654.22,0.60138979]
[1747827479196,2.28217306,654.93,654.23,0.60138979]
[1747827479500,2.28217306,654.93,654.24,0.60138979]
[1747827479696,2.28217306,654.91,654.25,0.60138979]
[1747827479894,2.28217306,654.91,654.26,0.60138979]
[1747827480194,2.28217306,654.91,654.24,0.30542969]
[1747827480494,2.28217306,654.91,654.25,0.60129437]
[1747827480795,2.28217306,654.91,654.26,0.90672406]
[1747827480994,2.28217306,654.91,654.26,0.30542969]
[1747827481193,2.28217306,654.91,654.27,0.60126922]
[1747827481398,2.28217306,654.91,654.28,0.60126922]
[1747827481698,2.28217306,654.91,654.29,0.60126922]
[1747827481899,2.28217306,654.91,654.26,0.30542969]
[1747827482100,2.28217306,654.91,654.27,0.60042819]
[1747827482301,2.28217306,654.91,654.28,0.60042819]
[1747827482600,2.28217306,654.96,654.29,0.60042819]
[1747827482803,2.28217306,654.96,654.09,0.27258931]
[1747827482998,2.28217306,654.96,654.1,0.90581993]
[1747827483195,2.28217306,654.96,654.11,0.90581993]
[1747827483400,2.28217306,654.96,654.12,0.90581993]
[1747827483601,2.28217306,654.96,654.13,2.3872717]
[1747827483801,2.28217306,654.96,654.14,0.90581993]
[1747827484001,2.28217306,654.96,654.13,1.48145177]
[1747827484002,2.28217306,654.96,654.15,0.90581993]
[1747827484195,2.28217306,654.96,654.16,0.90581993]
[1747827484400,2.28217306,654.96,654.17,0.90581993]
[1747827484601,2.28217306,654.96,654.18,0.90581993]
[1747827484803,2.28217306,654.96,654.19,0.90581993]
[1747827485102,2.28217306,655.0,654.2,2.08184201]
[1747827485304,2.28217306,655.0,654.21,0.60035221]
[1747827485498,2.28217306,655.0,654.22,1.17602208]
[1747827485697,2.28217306,655.0,654.23,0.60035221]
[1747827486103,2.28217306,655.0,654.24,1.17602208]
[1747827486398,2.28217306,655.0,654.25,0.60035221]
[1747827488000,2.28217306,654.99,654.26,0.30542969]
[1747827488205,2.28217306,654.99,654.27,0.60035221]
[1747827488605,2.28217306,654.99,654.28,0.60052672]
[1747827488902,2.28217306,654.99,654.29,0.60052672]
[1747827489103,2.28217306,654.99,654.29,0.30542969]
[1747827490006,2.28217306,655.02,654.08,0.30542969]
[1747827490206,2.28217306,655.02,654.09,0.90601196]
[1747827490407,2.28217306,655.02,654.1,0.90601196]
[1747827490709,2.28217306,655.02,654.11,0.90601196]
[1747827490905,2.28217306,655.02,654.12,0.90601196]
[1747827491104,2.28217306,655.02,654.13,2.08246657]
[1747827491309,2.28217306,655.02,654.14,0.90601196]
[1747827491502,2.28217306,655.02,654.15,2.08246657]
[1747827491710,2.28217306,655.02,654.16,0.90601196]
[1747827491904,2.28217306,655.02,654.17,0.90601196]
[1747827492107,2.28217306,655.02,654.18,2.08246115]
[1747827492309,2.28217306,655.02,654.19,0.90600654]
[1747827492509,2.28217306,655.02,654.2,2.08246115]
[1747827492711,2.28217306,655.0,654.21,0.90600654]
[1747827492912,2.28217306,655.0,654.22,0.90600654]
[1747827493112,2.28217306,655.0,654.23,2.08246115]
[1747827493409,2.28217306,655.0,654.24,0.90600654]
[1747827493609,2.28217306,655.0,654.25,0.90600654]
[1747827493808,2.28217306,655.0,654.26,1.17645461]
[1747827494010,2.28217306,655.0,654.27,0.9057217]
[1747827494313,2.28217306,655.0,654.28,2.387606]
[1747827494613,2.28217306,655.0,654.29,0.60029141]
[1747827494813,2.28217306,655.0,654.3,0.60029141]
[1747827495013,2.28217306,655.0,654.31,1.77674602]
[1747827495209,2.28217306,655.0,654.32,0.60029141]
[1747827495422,2.28217306,655.0,654.33,0.60029141]
[1747827495609,2.28217306,655.0,654.34,1.77674602]
[1747827495808,2.28217306,655.0,654.35,0.60029141]
[1747827496012,0.26579393,655.6,654.34,1.17645461]
[1747827496013,2.28217306,655.17,654.36,0.60029141]
[1747827496210,2.28217306,655.17,654.37,0.60029141]
[1747827496413,2.28217306,655.17,654.38,0.60029141]
[1747827496609,2.28217306,655.17,654.32,0.30542969]
[1747827496812,2.28217306,655.17,654.33,0.60017332]
[1747827497013,2.28217306,655.17,654.34,0.60017332]
[1747827497216,2.28217306,655.17,654.35,1.77488083]
[1747827497418,2.28217306,655.17,654.36,0.6001946]
[1747827497619,2.28217306,655.17,654.37,0.6001946]
[1747827497815,2.28217306,655.17,654.35,0.30542969]
[1747827498119,2.28217306,655.17,654.36,0.60018663]
[1747827498415,2.28217306,655.17,654.37,0.60018663]
[1747827498615,2.28217306,655.15,654.36,0.30542969]
[1747827498818,2.28217306,655.15,654.37,0.6001914]
[1747827499020,2.28217306,655.15,654.36,0.30542969]
[1747827499216,2.28217306,655.15,654.37,0.60027056]
[1747827499416,2.28217306,655.15,654.36,0.30542969]
[1747827499617,2.28217306,655.15,654.37,0.60024312]
[1747827499818,2.28217306,655.15,654.38,0.60024312]
[1747827500019,2.28217306,655.15,654.39,0.60024312]
[1747827500319,2.28217306,655.15,654.4,0.60016339]
[1747827500618,2.28217306,655.15,654.41,0.60016339]
[1747827500819,2.28217306,655.15,654.39,0.30542969]
[1747827501118,2.28217306,655.15,654.4,0.60013936]
[1747827501317,2.28217306,655.15,654.41,0.60013936]
[1747827501518,2.28217306,655.33,654.41,0.30542969]
[1747827502920,2.28217306,655.33,654.42,0.30542969]
[1747827504522,2.28217306,655.31,654.43,0.30542969]
[1747827505922,2.28217306,655.31,654.07,0.27258931]
[1747827506121,2.28217306,655.31,654.08,0.90601553]
[1747827506321,2.28217306,655.31,654.09,0.90601553]
[1747827506518,2.28217306,655.31,654.1,0.90601553]
[1747827506721,2.28217306,655.31,654.11,0.90601553]
[1747827506922,2.28217306,655.31,654.12,0.90601553]
[1747827507123,2.28217306,655.31,654.13,0.90601553]
[1747827507320,2.28217306,655.31,654.14,0.90601553]
[1747827507625,2.28217306,655.05,654.15,2.08153913]
[1747827507827,2.28217306,655.05,654.16,0.90601553]
[1747827508022,2.28217306,655.05,654.17,0.90627841]
[1747827508222,2.28217306,655.05,654.18,2.08180201]
[1747827508422,2.28217306,655.05,654.19,0.90627841]
[1747827508622,2.28217306,655.05,654.2,0.90627841]
[1747827508821,2.28217306,655.05,654.21,2.08180201]
[1747827509120,2.28217306,655.05,654.22,0.90627841]
[1747827509320,2.28217306,655.05,654.23,0.90627841]
[1747827509520,2.28217306,655.05,654.24,0.90627841]
[1747827509724,2.28217306,655.05,654.25,0.90644417]
[1747827510024,2.28217306,655.05,654.26,0.90644417]
[1747827510223,2.28217306,655.05,654.27,2.08196777]
[1747827510421,2.28217306,655.05,654.28,0.60099274]
[1747827510921,2.28217306,655.05,654.29,1.48097439]
[1747827511123,2.28217306,655.05,654.3,0.60099274]
[1747827511526,2.28217306,655.05,654.31,1.1755236]
[1747827511726,2.28217306,655.05,654.32,0.60099274]
[1747827511927,2.28217306,655.05,654.33,0.30545079]
[1747827512128,2.28217306,655.05,654.34,0.60099274]
[1747827513226,2.28217306,655.05,654.35,0.60103125]
[1747827513427,2.28217306,655.04,654.36,0.60103125]
[1747827515028,2.28217306,655.04,654.37,0.90652353]
[1747827515222,2.28217306,655.04,654.37,0.30545079]
[1747827516629,2.28217306,654.95,654.38,0.30545079]
[1747827517533,2.28217306,654.95,654.39,0.30545079]
[1747827518830,2.28217306,654.9,654.18,0.27258931]
[1747827519032,2.28217306,654.9,654.19,0.90655987]
[1747827519233,2.28217306,654.9,654.2,2.08240406]
[1747827519427,2.28217306,654.9,654.21,0.90655987]
[1747827519628,2.28217306,654.9,654.22,2.08240406]
[1747827519833,2.28217306,654.9,654.23,0.90655987]
[1747827520031,2.28217306,654.9,654.24,2.08240406]
[1747827520235,2.28217306,654.9,654.25,1.21204001]
[1747827520433,2.28217306,654.9,654.26,2.08243166]
[1747827520629,2.28217306,654.9,654.27,0.90658747]
[1747827520833,2.28217306,654.9,654.28,2.08243166]
[1747827521032,2.28217306,654.9,654.29,0.60113496]
[1747827521434,2.28217306,654.9,654.3,1.17584419]
[1747827521634,2.28217306,654.9,654.31,0.60113496]
[1747827522033,2.28217306,654.9,654.32,0.60114843]
[1747827522336,2.28217306,654.9,654.33,0.60114843]
[1747827522537,2.28217306,654.9,654.34,0.60114843]
[1747827522738,2.28217306,654.9,654.35,0.60114843]
[1747827522932,2.28217306,654.9,654.36,0.60114843]
[1747827523137,2.28217306,654.9,654.32,0.30545254]
[1747827523138,2.28217306,654.9,654.37,0.60114843]
[1747827523342,2.28217306,654.9,654.32,0.30545254]
[1747827523643,2.28217306,654.9,654.33,0.90662339]
[1747827523843,2.28217306,654.9,654.34,0.60116512]
[1747827524043,2.28217306,654.9,654.35,0.60116512]
[1747827524243,2.28217306,654.9,654.36,0.60116512]
[1747827524442,2.28217306,654.9,654.33,0.30545254]
[1747827524643,2.28217306,654.9,654.34,0.60120748]
[1747827524841,2.28217306,654.9,654.35,0.60120748]
[1747827525043,2.28217306,654.9,654.37,0.30545254]
[1747827525843,2.28217306,654.9,654.19,0.30545254]
[1747827526043,2.28217306,654.9,654.2,2.08299028]
[1747827526243,2.28217306,654.9,654.21,0.90698605]
[1747827526442,2.28217306,654.9,654.22,2.08299028]
[1747827526641,2.28217306,654.9,654.23,0.90698605]
[1747827526843,2.28217306,654.9,654.24,0.90698605]
[1747827527043,2.28217306,654.9,654.25,0.90698605]
[1747827527239,2.28217306,654.9,654.26,0.90698605]
[1747827527438,2.28217306,654.9,654.27,2.08280556]
[1747827527643,2.28217306,654.9,654.28,0.90680133]
[1747827527839,2.28217306,654.9,654.27,1.17600423]
[1747827527840,2.28217306,654.9,654.29,0.60134718]
[1747827528042,2.28217306,654.89,654.3,1.77735141]
[1747827528237,2.28217306,654.89,654.31,1.77735141]
[1747827528439,2.28217306,654.89,654.32,0.60134718]
[1747827528643,2.28217306,654.89,654.33,0.60134718]
[1747827528944,2.28217306,654.89,654.34,0.60134718]
[1747827529140,2.28217306,654.89,654.35,0.60134718]
[1747827529337,2.28217306,654.89,654.36,0.60134718]
[1747827530947,2.28217306,654.87,654.37,0.30545254]
[1747827532749,2.28217306,654.87,654.19,0.27258931]
[1747827532947,2.28217306,654.87,654.2,0.90713058]
[1747827533147,2.28217306,654.87,654.19,0.27258931]
[1747827533148,2.28217306,654.87,654.21,1.77782174]
[1747827533341,2.28217306,654.87,654.22,0.60164094]
[1747827533546,2.28217306,654.87,654.23,1.1761808]
[1747827533746,2.28217306,654.87,654.24,0.60164094]
[1747827534051,2.28217306,654.87,654.25,1.1761808]
[1747827534244,2.28217306,654.87,654.26,0.60164094]
[1747827534443,2.28217306,654.87,654.27,0.60182987]
[1747827534643,2.28217306,654.87,654.28,0.60182987]
[1747827534844,2.28217306,654.87,654.29,0.60182987]
[1747827535045,2.28217306,654.91,654.25,0.30545254]
[1747827535249,2.28217306,654.91,654.26,0.60182497]
[1747827535444,2.28217306,654.91,654.27,0.60182497]
[1747827535647,2.28217306,654.91,654.28,0.60182497]
[1747827535850,2.28217306,654.91,654.29,0.60182497]
[1747827536051,2.28217306,654.91,654.25,0.30545254]
[1747827536350,2.28217306,654.91,654.3,0.30545254]
[1747827537447,2.28217306,654.91,654.07,0.30545254]
[1747827537650,2.28217306,654.91,654.08,0.90727655]
[1747827537850,2.28217306,654.91,654.09,1.17668485]
[1747827538053,2.28217306,654.91,654.1,0.90727664]
[1747827538253,2.28217306,654.91,654.11,0.90727664]
[1747827538453,2.28217306,654.91,654.12,0.90727664]
[1747827538654,2.28217306,654.91,654.13,2.08396149]
[1747827538854,2.28217306,654.91,654.14,1.21272918]
[1747827539152,2.28217306,654.91,654.15,0.90727664]
[1747827539352,2.28217306,654.91,654.16,0.90727664]
[1747827539555,2.28217306,654.91,654.17,0.90727664]
[1747827539750,2.28217306,654.91,654.18,2.08396149]
[1747827539950,2.28217306,654.91,654.19,0.90727664]
[1747827540151,2.28217306,654.91,654.2,0.60178419]
[1747827540351,2.28217306,654.93,654.21,1.77846904]
[1747827540556,2.28217306,654.93,654.22,0.60178419]
[1747827540755,2.28217306,654.93,654.23,1.77846904]
[1747827541058,2.28217306,654.93,654.24,0.60178419]
[1747827541257,2.28217306,654.93,654.25,0.60178419]
[1747827541452,2.28217306,654.93,654.26,0.60178419]
[1747827541657,2.28217306,654.93,654.27,0.60178419]
[1747827541857,2.28217306,654.93,654.28,0.60178419]
[1747827542055,2.28217306,654.93,654.24,0.30545254]
[1747827542255,2.28217306,654.93,654.25,0.6016633]
[1747827542452,2.28217306,654.91,654.26,0.6016633]
[1747827542656,2.28217306,654.91,654.27,0.60167383]
[1747827542956,2.28217306,654.91,654.05,0.57804185]
[1747827543656,2.28217306,654.91,654.06,0.30545254]
[1747827544960,2.28217306,654.91,654.07,2.08378672]
[1747827545160,2.28217306,654.91,654.08,0.90708418]
[1747827545358,2.28217306,654.91,654.09,2.08378672]
[1747827545554,2.28217306,654.91,654.1,2.08378672]
[1747827545860,2.28217306,654.91,654.11,2.08378672]
[1747827546059,2.28217306,654.91,654.12,0.90708418]
[1747827546262,2.28217306,654.91,654.13,2.08378672]
[1747827546458,2.28217306,654.91,654.14,0.90708418]
[1747827546659,2.28217306,654.91,654.15,1.21253672]
[1747827546854,2.28217306,654.91,654.16,2.08378672]
[1747827547159,2.28217306,654.91,654.17,0.60158111]
[1747827547358,2.28217306,654.91,654.16,1.17670254]
[1747827547359,2.28217306,654.91,654.18,0.60158111]
[1747827547560,2.28217306,654.91,654.19,1.77828365]
[1747827547755,2.28217306,654.91,654.2,0.60158111]
[1747827547958,2.28217306,654.91,654.21,0.60158111]
[1747827548158,2.28217306,654.91,654.22,0.60158111]
[1747827548457,2.28217306,654.91,654.23,0.60158111]
[1747827548658,2.28217306,654.91,654.24,0.90703365]
[1747827548861,2.28217306,654.91,654.25,0.60158111]
[1747827549061,2.28217306,654.91,654.24,0.30545254]
[1747827549257,2.28217306,654.91,654.25,0.6013717]
[1747827549461,2.28217306,654.91,654.24,0.30545254]
[1747827549762,2.28217306,654.91,654.25,0.60133068]
[1747827549963,2.28217306,654.91,654.03,0.30545254]
[1747827550166,2.28217306,654.91,654.04,0.90683062]
[1747827550360,2.28217306,654.91,654.05,0.90683062]
[1747827550557,2.28217306,654.91,654.06,2.08354323]
[1747827550862,2.28217306,654.91,654.07,0.90683062]
[1747827551162,2.28217306,654.91,654.08,2.08354323]
[1747827551462,2.28217306,654.91,654.09,2.38896233]
[1747827551663,2.28217306,654.91,654.1,0.90679718]
[1747827551862,2.28217306,654.91,654.11,0.90679718]
[1747827552059,2.28217306,654.91,654.1,1.17671261]
[1747827552060,2.28217306,654.91,654.12,2.08350979]
[1747827552265,2.28217306,654.91,654.13,0.90679718]
[1747827552463,2.28217306,654.91,654.14,0.90679718]
[1747827552764,2.28217306,654.91,654.15,2.08350979]
[1747827552965,2.28217306,654.88,654.16,1.77800635]
[1747827553261,2.28217306,654.88,654.17,0.60129374]
[1747827553460,2.28217306,654.88,654.18,1.77800635]
[1747827553664,2.28217306,654.88,654.19,0.60129374]
[1747827553866,2.28217306,654.88,654.2,0.60129374]
[1747827554061,2.28217306,654.88,654.03,0.27258931]
[1747827554062,2.28217306,654.88,654.21,0.90674628]
[1747827554263,2.28217306,654.88,654.22,0.60129374]
[1747827554464,2.28217306,654.88,654.23,0.60129374]
[1747827554664,2.28217306,654.88,654.24,0.60129374]
[1747827554865,2.28217306,654.88,654.21,0.30545254]
[1747827555063,2.28217306,654.88,654.22,0.60119685]
[1747827555267,2.28217306,654.88,654.23,0.60119685]
[1747827555567,2.28217306,654.84,654.24,0.60119685]
[1747827556667,2.28217306,654.84,654.25,0.30545254]
[1747827557769,2.28217306,654.96,654.05,0.30545254]
[1747827557968,2.28217306,654.96,654.06,0.90673028]
[1747827558169,2.28217306,654.96,654.07,0.90673028]
[1747827558368,2.28217306,654.96,654.08,0.90673078]
[1747827558669,2.28217306,654.96,654.09,2.08338658]
[1747827558869,2.28217306,654.96,654.1,0.90672957]
[1747827559066,2.28217306,654.96,654.11,1.21218211]
[1747827559266,2.28217306,654.96,654.12,0.90672957]
[1747827559464,2.28217306,654.96,654.13,2.08338658]
[1747827559669,2.28217306,654.96,654.14,0.90672957]
[1747827559871,2.28217306,654.96,654.15,0.90672957]
[1747827560171,2.28217306,654.96,654.16,1.77788484]
[1747827560470,2.28217306,654.96,654.17,0.60122783]
[1747827560669,2.28217306,654.96,654.17,1.77788484]
[1747827560865,2.28217306,654.96,654.18,1.77788484]
[1747827561066,2.28217306,654.96,654.19,0.60122783]
[1747827561266,2.28217306,654.96,654.19,0.90668037]
[1747827561565,2.28217306,654.96,654.2,1.77788484]
[1747827561863,2.28217306,654.96,654.21,1.77788484]
[1747827562065,2.28217306,654.96,654.21,1.17665701]
[1747827562270,2.28217306,654.96,654.19,0.30545254]
[1747827562670,2.28217306,654.97,654.22,0.30545254]
[1747827563167,2.28217306,654.97,654.23,0.60138092]
[1747827563365,2.28217306,654.97,654.22,0.30545254]
[1747827563366,2.28217306,654.97,654.24,0.60138092]
[1747827563569,2.28217306,654.97,654.22,0.30545254]
[1747827563766,2.28217306,654.97,654.23,0.60148741]
[1747827563968,2.28217306,654.97,654.22,0.30545254]
[1747827564368,2.28217306,654.97,654.0,0.30545254]
[1747827564668,2.28217306,654.97,654.01,0.90706838]
[1747827564971,2.28217306,654.97,654.02,2.08437966]
[1747827565171,2.28217306,654.97,654.03,0.90706838]
[1747827565365,2.28217306,654.97,654.04,2.08437966]
[1747827565569,2.28217306,654.97,654.05,0.90706838]
[1747827565770,2.28217306,654.97,654.06,0.90706838]
[1747827565970,2.28217306,654.86,654.07,0.90703741]
[1747827566171,2.28217306,654.86,654.08,0.90703741]
[1747827566371,2.28217306,654.86,654.09,0.90703741]
[1747827566573,2.28217306,654.86,654.1,0.90703741]
[1747827566868,2.28217306,654.86,654.11,0.90703741]
[1747827567073,2.28217306,654.86,654.12,0.90703741]
[1747827567273,2.28217306,654.86,654.13,2.08434869]
[1747827567469,2.28217306,654.86,654.14,0.90703741]
[1747827567672,2.28217306,654.86,654.15,0.90703741]
[1747827567973,2.28217306,654.86,654.16,1.77882735]
[1747827568168,2.28217306,654.86,654.17,1.77882735]
[1747827568375,2.28217306,654.86,654.18,1.77882735]
[1747827568574,2.28217306,654.86,654.19,0.60151607]
[1747827568772,2.28217306,654.9,654.2,1.77882735]
[1747827569074,2.28217306,654.9,654.21,0.60151607]
[1747827569270,2.28217306,654.9,654.22,0.60151607]
[1747827569475,2.28217306,654.9,654.23,0.60151607]
[1747827569774,2.28217306,654.9,654.24,0.60151607]
[1747827569974,2.28217306,654.9,654.25,0.60151607]
[1747827570174,2.28217306,654.9,654.24,0.30545254]
[1747827570471,2.28217306,654.9,654.25,0.60146567]
[1747827570674,2.28217306,654.9,654.24,0.30545254]
[1747827570878,2.28217306,654.9,654.25,0.60147524]
[1747827571076,2.28217306,654.9,654.24,0.30545254]
[1747827571277,2.28217306,654.9,654.25,0.60147608]
[1747827571473,2.28217306,654.9,654.24,0.30545254]
[1747827571676,2.28217306,654.9,654.25,0.60149558]
[1747827571872,2.28217306,654.9,654.24,0.30545254]
[1747827572072,2.28217306,654.9,654.25,0.6014871]
[1747827572276,2.28217306,654.9,654.26,0.60148886]
[1747827572478,2.28217306,654.9,654.24,0.30545254]
[1747827572679,2.28217306,654.84,654.25,0.60149429]
[1747827572977,2.28217306,654.84,654.26,0.60146293]
[1747827573173,2.28217306,654.84,654.27,0.60146293]
[1747827573380,2.28217306,654.84,654.04,0.27258931]
[1747827573679,2.28217306,654.84,654.28,0.30545254]
[1747827575273,2.28217306,654.89,654.05,0.57804185]
[1747827575473,2.28217306,654.89,654.06,0.90702393]
[1747827575673,2.28217306,654.89,654.07,0.90702393]
[1747827575973,2.28217306,654.89,654.08,2.08408737]
[1747827576176,2.28217306,654.89,654.09,1.21247647]
[1747827576374,2.28217306,654.89,654.1,0.90702393]
[1747827576579,2.28217306,654.89,654.11,0.90706225]
[1747827576776,2.28217306,654.89,654.12,0.90706225]
[1747827576973,2.28217306,654.89,654.13,2.08412569]
[1747827577176,2.28217306,654.89,654.14,0.90706225]
[1747827577372,2.28217306,654.89,654.15,0.90706225]
[1747827577574,2.28217306,654.89,654.16,2.08412569]
[1747827577778,2.28217306,654.89,654.17,0.90706225]
[1747827577975,2.28217306,654.89,654.18,0.90706225]
[1747827578174,2.28217306,654.89,654.19,0.60156617]
[1747827578481,2.28217306,654.89,654.2,1.17706344]
[1747827578676,2.28217306,654.89,654.21,0.60156617]
[1747827578876,2.28217306,654.89,654.22,1.17706344]
[1747827579076,2.28217306,654.89,654.23,0.60156617]
[1747827579479,2.28217306,654.89,654.24,0.60156617]
[1747827579683,2.28217306,654.89,654.25,0.60156617]
[1747827579882,2.28217306,654.89,654.26,0.60156617]
[1747827580086,2.28217306,654.9,654.27,0.60156617]
[1747827580285,2.28217306,654.9,654.24,0.30545254]
[1747827580585,2.28217306,654.9,654.25,0.60169324]
[1747827580779,2.28217306,654.9,654.26,0.60169324]
[1747827580979,2.28217306,654.9,654.27,0.60169324]
[1747827581178,2.28217306,654.9,654.27,0.30545254]
[1747827581786,2.28217306,654.9,654.28,0.60176424]
[1747827581981,2.28217306,654.9,654.27,0.30545254]
[1747827582184,2.28217306,654.9,654.28,0.60176497]
[1747827582484,2.28217306,654.9,654.27,0.30545254]
[1747827582685,2.28217306,654.92,654.29,0.30545254]
[1747827583687,2.28217306,654.92,654.04,0.30545254]
[1747827583889,2.28217306,654.92,654.05,0.9066434]
[1747827584082,2.28217306,654.92,654.06,0.9066434]
[1747827584285,2.28217306,654.92,654.07,0.9066434]
[1747827584485,2.28217306,654.92,654.08,2.0856844]
[1747827584685,2.28217306,654.92,654.09,0.9066434]
[1747827584883,2.28217306,654.92,654.1,2.0856844]
[1747827585187,2.28217306,654.92,654.11,0.9066434]
[1747827585387,2.28217306,654.92,654.12,2.0856844]
[1747827585687,2.28217306,654.92,654.13,0.9066434]
[1747827585987,2.28217306,654.92,654.14,2.0856844]
[1747827586187,2.28217306,654.92,654.15,1.21209594]
[1747827586387,2.28217306,654.92,654.16,2.0856844]
[1747827586581,2.28217306,654.92,654.17,0.9066434]
[1747827586786,2.28217306,654.92,654.18,0.9066434]
[1747827586985,2.28217306,654.92,654.19,2.0856844]
[1747827587183,2.28217306,654.92,654.2,0.9066434]
[1747827587382,2.28217306,654.92,654.21,0.60114446]
[1747827587585,2.28217306,654.92,654.22,1.78018546]
[1747827587787,2.28217306,654.9,654.23,0.60114446]
[1747827587981,2.28217306,654.9,654.24,1.179041]
[1747827588183,2.28217306,654.9,654.25,0.60114446]
[1747827588382,2.28217306,654.9,654.26,1.179041]
[1747827588586,2.28217306,654.9,654.27,0.60114446]
[1747827588987,2.28217306,654.9,654.28,0.906597]
[1747827589187,2.28217306,654.9,654.29,0.60114446]
[1747827590886,2.28217306,654.78,654.3,0.90730932]
[1747827591087,2.28217306,654.78,654.31,0.60185678]
[1747827592091,2.28217306,654.78,654.32,0.30545254]
[1747827593491,2.28217306,654.76,654.12,0.57804185]
[1747827593690,2.28217306,654.76,654.13,0.90760511]
[1747827593885,2.28217306,654.76,654.14,0.90760511]
[1747827594085,2.28217306,654.76,654.15,0.90760511]
[1747827594290,2.28217306,654.76,654.16,2.08888675]
[1747827594486,2.28217306,654.76,654.17,0.9076136]
[1747827594690,2.28217306,654.76,654.18,2.39434778]
[1747827594985,2.28217306,654.76,654.19,0.9076136]
[1747827595189,2.28217306,654.76,654.2,2.08889524]
[1747827595390,2.28217306,654.76,654.21,0.9076136]
[1747827595591,2.28217306,654.76,654.22,2.08889524]
[1747827595792,2.28217306,654.76,654.23,0.9076136]
[1747827595988,2.28217306,654.77,654.24,0.6021148]
[1747827596192,2.28217306,654.77,654.25,1.78339486]
[1747827596492,2.28217306,654.77,654.26,0.60211322]
[1747827596687,2.28217306,654.77,654.27,0.60211322]
[1747827596993,2.28217306,654.77,654.28,1.78339486]
[1747827597189,2.28217306,654.77,654.29,0.60211322]
[1747827597693,2.28217306,654.77,654.3,0.30545254]
[1747827597889,2.28217306,654.77,654.31,0.60215655]
[1747827598092,2.28217306,654.77,654.32,0.60215655]
[1747827598288,2.28217306,654.77,654.3,0.30545254]
[1747827598492,2.28217306,654.77,654.31,0.60213173]
[1747827598692,2.28217306,654.77,654.32,0.60213173]
[1747827598893,2.28217306,654.77,654.3,0.30545254]
[1747827599194,2.28217306,654.77,654.31,0.60213369]
[1747827599390,2.28217306,654.77,654.32,0.60213369]
[1747827599596,2.28217306,654.77,654.3,0.30545254]
[1747827599797,2.28217306,654.86,654.32,0.30545254]
[1747827601201,2.28217306,654.86,654.09,0.30545254]
[1747827601399,2.28217306,654.86,654.1,2.08978528]
[1747827601602,2.28217306,654.86,654.11,0.90763835]
[1747827601804,2.28217306,654.86,654.12,2.08978528]
[1747827601997,2.28217306,654.86,654.13,0.90763835]
[1747827602202,2.28217306,654.86,654.14,0.90763835]
[1747827602400,2.28217306,654.86,654.15,2.08978528]
[1747827602704,2.28217306,654.83,654.16,0.90777433]
[1747827602904,2.28217306,654.83,654.17,0.90777433]
[1747827603099,2.28217306,654.83,654.18,2.08992126]
[1747827603303,2.28217306,654.83,654.19,0.90777433]
[1747827603505,2.28217306,654.83,654.2,0.60225605]
[1747827603701,2.28217306,654.83,654.21,1.78440298]
[1747827603900,2.28217306,654.83,654.22,0.60225605]
[1747827604104,2.28217306,654.83,654.23,1.78440298]
[1747827604306,2.28217306,654.83,654.24,0.60225605]
[1747827604505,2.28217306,654.83,654.25,0.60225605]
[1747827604805,2.28217306,654.83,654.26,0.60225605]
[1747827605000,2.28217306,654.83,654.27,0.60225605]
[1747827605198,2.28217306,654.83,654.28,0.60225605]
[1747827605398,2.28217306,654.83,654.23,0.30545254]
[1747827605597,2.28217306,654.83,654.24,1.78437156]
[1747827605806,2.28217306,654.83,654.25,0.6021544]
[1747827606206,2.28217306,654.83,654.26,0.6021544]
[1747827606402,2.28217306,654.79,654.27,0.6021544]
[1747827606599,2.28217306,654.79,654.28,0.6021544]
[1747827606805,2.28217306,654.79,654.25,0.30545254]
[1747827606999,2.28217306,654.79,654.26,0.60213749]
[1747827607202,2.28217306,654.79,654.27,0.60213749]
[1747827607402,2.28217306,654.79,654.28,0.60213749]
[1747827607604,2.28217306,654.79,654.25,0.30545254]
[1747827607805,2.28217306,654.79,654.26,0.60212003]
[1747827608006,2.28217306,654.79,654.27,0.60212003]
[1747827608200,2.28217306,654.79,654.28,0.60212003]
[1747827608404,2.28217306,654.79,654.05,0.30545254]
[1747827608603,2.28217306,654.79,654.06,0.90762431]